[Event "Titled Tuesday Blitz May 2 Early 2023"]
[White "Averjanov, Alexey"]
[Black "Rustemov, Alexander"]
[WhiteFideId "14109867"]
[BlackFideId "4119002"]
[WhiteElo "2399"]
[BlackElo "2525"]
[Result "1/2-1/2"]
[Round "08"]
[TimeControl "180+2"]
[Date "2023.05.02"]
[WhiteClock "0:00:54"]
[BlackClock "0:00:20"]

1. d4 {[%clk 0:03:00]}  d5 {[%clk 0:02:58]} 2. c4 {[%clk 0:03:01]}  e6 {[%clk 0:02:58]} 3. Nf3 {[%clk 0:03:01]}  Nf6 {[%clk 0:02:57]} 4. e3 {[%clk 0:03:01]}  Bd6 {[%clk 0:02:53]} 5. Nbd2 {[%clk 0:03:01]}  O-O {[%clk 0:02:50]} 6. Bd3 {[%clk 0:03:00]}  b6 {[%clk 0:02:49]} 7. O-O {[%clk 0:03:00]}  Bb7 {[%clk 0:02:49]} 8. Qe2 {[%clk 0:03:01]}  Nbd7 {[%clk 0:02:48]} 9. e4 {[%clk 0:03:01]}  dxe4 {[%clk 0:02:47]} 10. Nxe4 {[%clk 0:03:02]}  Nxe4 {[%clk 0:02:46]} 11. Bxe4 {[%clk 0:03:03]}  Bxe4 {[%clk 0:02:45]} 12. Qxe4 {[%clk 0:03:04]}  Nf6 {[%clk 0:02:39]} 13. Qe2 {[%clk 0:03:04]}  c6 {[%clk 0:02:37]} 14. b3 {[%clk 0:03:03]}  Qc7 {[%clk 0:02:31]} 15. Bb2 {[%clk 0:03:03]}  Rfe8 {[%clk 0:02:29]} 16. Rad1 {[%clk 0:03:03]}  Rad8 {[%clk 0:02:29]} 17. Rd3 {[%clk 0:03:03]}  Nd7 {[%clk 0:02:17]} 18. Ne5 {[%clk 0:03:00]}  Nxe5 {[%clk 0:02:14]} 19. dxe5 {[%clk 0:03:01]}  Be7 {[%clk 0:02:14]} 20. Rfd1 {[%clk 0:03:01]}  Rxd3 {[%clk 0:02:13]} 21. Rxd3 {[%clk 0:03:01]}  Rd8 {[%clk 0:02:13]} 22. Qd1 {[%clk 0:03:00]}  Rxd3 {[%clk 0:02:12]} 23. Qxd3 {[%clk 0:03:01]}  Qd8 {[%clk 0:02:13]} 24. Qxd8+ {[%clk 0:03:01]}  Bxd8 {[%clk 0:02:13]} 25. f4 {[%clk 0:02:56]}  Kf8 {[%clk 0:02:10]} 26. Kf2 {[%clk 0:02:52]}  Ke8 {[%clk 0:02:07]} 27. Kf3 {[%clk 0:02:52]}  h5 {[%clk 0:02:06]} 28. Ke4 {[%clk 0:02:52]}  g6 {[%clk 0:02:06]} 29. a4 {[%clk 0:02:51]}  Kd7 {[%clk 0:02:05]} 30. Bd4 {[%clk 0:02:50]}  a6 {[%clk 0:02:04]} 31. g3 {[%clk 0:02:49]}  b5 {[%clk 0:02:04]} 32. h3 {[%clk 0:02:45]}  Ba5 {[%clk 0:02:01]} 33. g4 {[%clk 0:02:45]}  hxg4 {[%clk 0:02:01]} 34. hxg4 {[%clk 0:02:46]}  Bd2 {[%clk 0:02:00]} 35. f5 {[%clk 0:02:43]}  gxf5+ {[%clk 0:01:56]} 36. gxf5 {[%clk 0:02:44]}  Kc7 {[%clk 0:01:50]} 37. Bc5 {[%clk 0:02:41]}  Kd7 {[%clk 0:01:48]} 38. Bd4 {[%clk 0:02:41]}  Bg5 {[%clk 0:01:48]} 39. Bc5 {[%clk 0:02:40]}  Bh4 {[%clk 0:01:46]} 40. Bd4 {[%clk 0:02:39]}  Bg3 {[%clk 0:01:46]} 41. Bc5 {[%clk 0:02:39]}  Be1 {[%clk 0:01:44]} 42. Bd4 {[%clk 0:02:39]}  Ke8 {[%clk 0:01:42]} 43. Bc5 {[%clk 0:02:39]}  Bg3 {[%clk 0:01:40]} 44. Bb4 {[%clk 0:02:37]}  Bf2 {[%clk 0:01:36]} 45. Bd6 {[%clk 0:02:36]}  Bb6 {[%clk 0:01:34]} 46. Bb4 {[%clk 0:02:36]}  Kd7 {[%clk 0:01:32]} 47. Bf8 {[%clk 0:02:34]}  Ba5 {[%clk 0:01:22]} 48. Bc5 {[%clk 0:02:33]}  Bc3 {[%clk 0:01:21]} 49. Bf8 {[%clk 0:02:32]}  Ke8 {[%clk 0:01:20]} 50. Bc5 {[%clk 0:02:32]}  Bb2 {[%clk 0:01:21]} 51. Bb4 {[%clk 0:02:31]}  Kd7 {[%clk 0:01:18]} 52. Bc5 {[%clk 0:02:30]}  Bc3 {[%clk 0:01:17]} 53. Ba3 {[%clk 0:02:29]}  Ba5 {[%clk 0:01:13]} 54. Bc5 {[%clk 0:02:29]}  Bc7 {[%clk 0:01:13]} 55. Bb4 {[%clk 0:02:28]}  Ke8 {[%clk 0:01:13]} 56. Bc5 {[%clk 0:02:26]}  Bd8 {[%clk 0:01:13]} 57. Bb4 {[%clk 0:02:26]}  Bb6 {[%clk 0:01:11]} 58. Bd6 {[%clk 0:02:25]}  Kd7 {[%clk 0:01:10]} 59. Bb4 {[%clk 0:02:24]}  Bc7 {[%clk 0:01:09]} 60. Bc5 {[%clk 0:02:24]}  Bd8 {[%clk 0:01:09]} 61. Bb4 {[%clk 0:02:24]}  Kc8 {[%clk 0:01:07]} 62. Bc5 {[%clk 0:02:21]}  Kb7 {[%clk 0:01:06]} 63. Bd4 {[%clk 0:02:21]}  Be7 {[%clk 0:01:05]} 64. Be3 {[%clk 0:02:20]}  bxa4 {[%clk 0:01:02]} 65. bxa4 {[%clk 0:02:19]}  Kc7 {[%clk 0:01:02]} 66. Bd4 {[%clk 0:02:17]}  Kd7 {[%clk 0:01:01]} 67. Bb6 {[%clk 0:02:16]}  Ke8 {[%clk 0:01:01]} 68. Be3 {[%clk 0:02:12]}  Kf8 {[%clk 0:01:00]} 69. Kf4 {[%clk 0:02:08]}  Kg8 {[%clk 0:01:00]} 70. Kg4 {[%clk 0:02:08]}  Kh7 {[%clk 0:00:59]} 71. Bf4 {[%clk 0:02:05]}  Bb4 {[%clk 0:00:58]} 72. Be3 {[%clk 0:02:02]}  Bc3 {[%clk 0:00:58]} 73. Bf4 {[%clk 0:02:03]}  Bd4 {[%clk 0:00:58]} 74. Bg3 {[%clk 0:02:02]}  Be3 {[%clk 0:00:58]} 75. Bh4 {[%clk 0:01:57]}  Kh6 {[%clk 0:00:56]} 76. Bd8 {[%clk 0:01:52]}  Bd4 {[%clk 0:00:55]} 77. Bf6 {[%clk 0:01:52]}  Bc3 {[%clk 0:00:54]} 78. Bh8 {[%clk 0:01:47]}  Bb4 {[%clk 0:00:48]} 79. Bf6 {[%clk 0:01:45]}  Kh7 {[%clk 0:00:47]} 80. Bg5 {[%clk 0:01:40]}  Bc3 {[%clk 0:00:47]} 81. Bf6 {[%clk 0:01:39]}  Kg8 {[%clk 0:00:45]} 82. Kf4 {[%clk 0:01:37]}  Kf8 {[%clk 0:00:45]} 83. Bd8 {[%clk 0:01:33]}  Bd2+ {[%clk 0:00:42]} 84. Ke4 {[%clk 0:01:33]}  Kg7 {[%clk 0:00:37]} 85. fxe6 {[%clk 0:01:24]}  fxe6 {[%clk 0:00:36]} 86. Kd4 {[%clk 0:01:24]}  Bb4 {[%clk 0:00:33]} 87. Bc7 {[%clk 0:01:24]}  c5+ {[%clk 0:00:29]} 88. Ke4 {[%clk 0:01:21]}  Kg6 {[%clk 0:00:29]} 89. Kf4 {[%clk 0:01:18]}  Kh5 {[%clk 0:00:29]} 90. Bd8 {[%clk 0:01:16]}  Bd2+ {[%clk 0:00:29]} 91. Kf3 {[%clk 0:01:10]}  Bc3 {[%clk 0:00:28]} 92. Be7 {[%clk 0:01:04]}  Bd4 {[%clk 0:00:28]} 93. Kf4 {[%clk 0:01:04]}  Bg1 {[%clk 0:00:27]} 94. Bd6 {[%clk 0:01:02]}  Kh4 {[%clk 0:00:26]} 95. Be7+ {[%clk 0:01:02]}  Kh5 {[%clk 0:00:26]} 96. Bd6 {[%clk 0:01:02]}  Bf2 {[%clk 0:00:26]} 97. Be7 {[%clk 0:01:00]}  Kg6 {[%clk 0:00:25]} 98. Kg4 {[%clk 0:00:59]}  Be3 {[%clk 0:00:24]} 99. Bd6 {[%clk 0:00:59]}  Bd4 {[%clk 0:00:23]} 100. Bc7 {[%clk 0:00:59]}  Bc3 {[%clk 0:00:22]} 101. Bd6 {[%clk 0:00:59]}  Bd4 {[%clk 0:00:22]} 102. Bb8 {[%clk 0:00:59]}  Bc3 {[%clk 0:00:22]} 103. Bc7 {[%clk 0:00:59]}  Bd4 {[%clk 0:00:22]} 104. Bd6 {[%clk 0:00:59]}  Be3 {[%clk 0:00:20]} 105. Be7 {[%clk 0:00:58]}  Bd4 {[%clk 0:00:20]} 106. Bd6 {[%clk 0:00:57]}  Be3 {[%clk 0:00:20]} 107. Bb8 {[%clk 0:00:56]}  Bd4 {[%clk 0:00:20]} 108. Bc7 {[%clk 0:00:56]}  Be3 {[%clk 0:00:20]} 109. Bb6 {[%clk 0:00:54]}  Bd4 {[%clk 0:00:20]} 110. Bc7 {[%clk 0:00:54]} 1/2-1/2


[Site "https://www.chess.com"]

[Event "Titled Tuesday Blitz May 2 Early 2023"]
[White "Suyarov, Mukhammadzokhid"]
[Black "Bolourchifard, Farzad"]
[WhiteFideId "14210495"]
[BlackFideId "12510084"]
[WhiteElo "2361"]
[BlackElo "2317"]
[Result "1-0"]
[Round "08"]
[TimeControl "180+2"]
[Date "2023.05.02"]
[WhiteClock "0:00:00"]
[BlackClock "0:00:00"]

1. d4 {[%clk 0:00:01]}  Nf6 {[%clk 0:00:01]} 2. Nc3 {[%clk 0:00:01]}  d5 {[%clk 0:00:01]} 3. Bf4 {[%clk 0:00:01]}  a6 {[%clk 0:00:01]} 4. e3 {[%clk 0:00:01]}  c5 {[%clk 0:00:01]} 5. dxc5 {[%clk 0:00:01]}  e6 {[%clk 0:00:01]} 6. Na4 {[%clk 0:00:01]}  Bxc5 {[%clk 0:00:01]} 7. Nxc5 {[%clk 0:00:01]}  Qa5+ {[%clk 0:00:01]} 8. c3 {[%clk 0:00:01]}  Qxc5 {[%clk 0:00:01]} 9. Nf3 {[%clk 0:00:01]}  O-O {[%clk 0:00:01]} 10. Bd3 {[%clk 0:00:01]}  Nc6 {[%clk 0:00:01]} 11. Ne5 {[%clk 0:00:01]}  Nxe5 {[%clk 0:00:01]} 12. Bxe5 {[%clk 0:00:01]}  Nd7 {[%clk 0:00:01]} 13. Bg3 {[%clk 0:00:01]}  Re8 {[%clk 0:00:01]} 14. O-O {[%clk 0:00:01]}  e5 {[%clk 0:00:01]} 15. a4 {[%clk 0:00:01]}  Nf6 {[%clk 0:00:01]} 16. h3 {[%clk 0:00:01]}  Ne4 {[%clk 0:00:01]} 17. Bh2 {[%clk 0:00:01]}  Bf5 {[%clk 0:00:00]} 18. Re1 {[%clk 0:00:01]}  Bg6 {[%clk 0:00:00]} 19. a5 {[%clk 0:00:01]}  Rad8 {[%clk 0:00:00]} 20. Ra4 {[%clk 0:00:01]}  Qc7 {[%clk 0:00:00]} 21. Rb4 {[%clk 0:00:01]}  Rd7 {[%clk 0:00:00]} 22. Rb6 {[%clk 0:00:01]}  Nc5 {[%clk 0:00:00]} 23. Bxg6 {[%clk 0:00:01]}  hxg6 {[%clk 0:00:00]} 24. Qg4 {[%clk 0:00:01]}  Rd6 {[%clk 0:00:00]} 25. Rxd6 {[%clk 0:00:01]}  Qxd6 {[%clk 0:00:00]} 26. Rd1 {[%clk 0:00:01]}  Qc6 {[%clk 0:00:00]} 27. f3 {[%clk 0:00:01]}  e4 {[%clk 0:00:00]} 28. Rd4 {[%clk 0:00:01]}  Nd3 {[%clk 0:00:00]} 29. fxe4 {[%clk 0:00:01]}  dxe4 {[%clk 0:00:00]} 30. Qd7 {[%clk 0:00:01]}  Qxd7 {[%clk 0:00:00]} 31. Rxd7 {[%clk 0:00:01]}  Nxb2 {[%clk 0:00:00]} 32. Rxb7 {[%clk 0:00:01]}  Nc4 {[%clk 0:00:00]} 33. Ra7 {[%clk 0:00:01]}  Nxa5 {[%clk 0:00:00]} 34. Rxa6 {[%clk 0:00:01]}  Nc4 {[%clk 0:00:00]} 35. Bf4 {[%clk 0:00:01]}  f6 {[%clk 0:00:00]} 36. h4 {[%clk 0:00:01]}  Nb2 {[%clk 0:00:00]} 37. g3 {[%clk 0:00:01]}  Nd3 {[%clk 0:00:00]} 38. Ra4 {[%clk 0:00:01]}  Nc5 {[%clk 0:00:00]} 39. Rc4 {[%clk 0:00:01]}  Nd3 {[%clk 0:00:00]} 40. Kg2 {[%clk 0:00:01]}  Kf7 {[%clk 0:00:00]} 41. Rc7+ {[%clk 0:00:01]}  Re7 {[%clk 0:00:00]} 42. Rc8 {[%clk 0:00:01]}  Ra7 {[%clk 0:00:00]} 43. g4 {[%clk 0:00:01]}  Nxf4+ {[%clk 0:00:00]} 44. exf4 {[%clk 0:00:01]}  g5 {[%clk 0:00:00]} 45. fxg5 {[%clk 0:00:00]}  fxg5 {[%clk 0:00:00]} 46. h5 {[%clk 0:00:00]}  Ra2+ {[%clk 0:00:00]} 47. Kg3 {[%clk 0:00:01]}  Rd2 {[%clk 0:00:00]} 48. Rc5 {[%clk 0:00:00]}  Rd3+ {[%clk 0:00:00]} 49. Kf2 {[%clk 0:00:00]}  Kf6 {[%clk 0:00:00]} 50. Rf5+ {[%clk 0:00:00]}  Ke6 {[%clk 0:00:00]} 51. Rxg5 {[%clk 0:00:00]}  Rxc3 {[%clk 0:00:00]} 52. Rxg7 {[%clk 0:00:00]}  Ke5 {[%clk 0:00:00]} 53. h6 {[%clk 0:00:00]}  Kf4 {[%clk 0:00:00]} 54. h7 {[%clk 0:00:00]}  Rh3 {[%clk 0:00:00]} 55. g5 {[%clk 0:00:00]}  e3+ {[%clk 0:00:00]} 56. Kg2 {[%clk 0:00:00]}  e2 {[%clk 0:00:00]} 57. Kf2 {[%clk 0:00:00]}  Rh2+ {[%clk 0:00:00]} 58. Ke1 {[%clk 0:00:00]}  Kf3 {[%clk 0:00:00]} 59. Rf7+ {[%clk 0:00:00]}  Ke3 {[%clk 0:00:00]} 60. Re7+ {[%clk 0:00:00]}  Kf3 {[%clk 0:00:00]} 61. g6 {[%clk 0:00:00]}  Rh1+ {[%clk 0:00:00]} 62. Kd2 {[%clk 0:00:00]}  Rd1+ {[%clk 0:00:00]} 63. Kc2 {[%clk 0:00:00]}  e1=Q {[%clk 0:00:00]} 64. Rxe1 {[%clk 0:00:00]}  Rxe1 {[%clk 0:00:00]} 1-0


[Site "https://www.chess.com"]

[Event "Titled Tuesday Blitz May 2 Early 2023"]
[White "Maksimovic, Bojan"]
[Black "Perez Gormaz, Matias"]
[WhiteFideId "14408120"]
[BlackFideId "3406342"]
[WhiteElo "2468"]
[BlackElo "2362"]
[Result "1/2-1/2"]
[Round "08"]
[TimeControl "180+2"]
[Date "2023.05.02"]
[WhiteClock "0:00:07"]
[BlackClock "0:00:10"]

1. Nf3 {[%clk 0:03:00]}  d5 {[%clk 0:03:00]} 2. g3 {[%clk 0:03:01]}  Nd7 {[%clk 0:02:57]} 3. d4 {[%clk 0:02:58]}  Nb6 {[%clk 0:02:57]} 4. Bg2 {[%clk 0:02:58]}  Bf5 {[%clk 0:02:58]} 5. O-O {[%clk 0:02:58]}  e6 {[%clk 0:02:59]} 6. Nbd2 {[%clk 0:02:52]}  Nf6 {[%clk 0:02:58]} 7. b3 {[%clk 0:02:52]}  c6 {[%clk 0:02:55]} 8. c4 {[%clk 0:02:51]}  Be7 {[%clk 0:02:54]} 9. Bb2 {[%clk 0:02:51]}  h6 {[%clk 0:02:53]} 10. Re1 {[%clk 0:02:51]}  O-O {[%clk 0:02:53]} 11. Ne5 {[%clk 0:02:49]}  Nbd7 {[%clk 0:02:49]} 12. e4 {[%clk 0:02:46]}  dxe4 {[%clk 0:02:49]} 13. Nxe4 {[%clk 0:02:46]}  Bxe4 {[%clk 0:02:44]} 14. Bxe4 {[%clk 0:02:47]}  Bb4 {[%clk 0:02:07]} 15. Re2 {[%clk 0:02:41]}  Nxe5 {[%clk 0:01:49]} 16. dxe5 {[%clk 0:02:41]}  Nxe4 {[%clk 0:01:49]} 17. Rxe4 {[%clk 0:02:40]}  Qa5 {[%clk 0:01:50]} 18. a3 {[%clk 0:02:39]}  Rfd8 {[%clk 0:01:44]} 19. Qe2 {[%clk 0:02:39]}  Bf8 {[%clk 0:01:35]} 20. b4 {[%clk 0:02:38]}  Qa4 {[%clk 0:01:33]} 21. Rd4 {[%clk 0:01:51]}  Rxd4 {[%clk 0:01:27]} 22. Bxd4 {[%clk 0:01:52]}  Rd8 {[%clk 0:01:28]} 23. Bb2 {[%clk 0:01:52]}  Qb3 {[%clk 0:01:23]} 24. h4 {[%clk 0:01:52]}  a5 {[%clk 0:01:11]} 25. bxa5 {[%clk 0:01:52]}  Bc5 {[%clk 0:01:11]} 26. Kg2 {[%clk 0:01:52]}  Qa4 {[%clk 0:00:55]} 27. Bc1 {[%clk 0:01:15]}  Qxa5 {[%clk 0:00:36]} 28. Bf4 {[%clk 0:01:10]}  Qa4 {[%clk 0:00:31]} 29. Rb1 {[%clk 0:01:08]}  b6 {[%clk 0:00:31]} 30. Qg4 {[%clk 0:01:06]}  Kh7 {[%clk 0:00:28]} 31. Qh5 {[%clk 0:01:06]}  Qxc4 {[%clk 0:00:24]} 32. Re1 {[%clk 0:00:48]}  Qc2 {[%clk 0:00:25]} 33. Re2 {[%clk 0:00:41]}  Qg6 {[%clk 0:00:25]} 34. Qf3 {[%clk 0:00:41]}  Rd5 {[%clk 0:00:26]} 35. a4 {[%clk 0:00:41]}  Qf5 {[%clk 0:00:21]} 36. h5 {[%clk 0:00:38]}  Qb1 {[%clk 0:00:20]} 37. Bd2 {[%clk 0:00:26]}  Qd3 {[%clk 0:00:18]} 38. Qg4 {[%clk 0:00:18]}  Qf5 {[%clk 0:00:09]} 39. Qc4 {[%clk 0:00:18]}  Qd3 {[%clk 0:00:07]} 40. Qg4 {[%clk 0:00:18]}  Qf5 {[%clk 0:00:07]} 41. Qxf5+ {[%clk 0:00:16]}  exf5 {[%clk 0:00:07]} 42. Bf4 {[%clk 0:00:17]}  Rd4 {[%clk 0:00:07]} 43. e6 {[%clk 0:00:17]}  fxe6 {[%clk 0:00:08]} 44. Rxe6 {[%clk 0:00:18]}  Rxa4 {[%clk 0:00:08]} 45. Rxc6 {[%clk 0:00:18]}  Ra2 {[%clk 0:00:08]} 46. Rc7 {[%clk 0:00:18]}  Rxf2+ {[%clk 0:00:08]} 47. Kh1 {[%clk 0:00:17]}  Re2 {[%clk 0:00:08]} 48. Rf7 {[%clk 0:00:14]}  Re7 {[%clk 0:00:03]} 49. Rxf5 {[%clk 0:00:13]}  g6 {[%clk 0:00:04]} 50. hxg6+ {[%clk 0:00:14]}  Kxg6 {[%clk 0:00:05]} 51. Rd5 {[%clk 0:00:14]}  h5 {[%clk 0:00:05]} 52. Kg2 {[%clk 0:00:14]}  Re2+ {[%clk 0:00:05]} 53. Kh3 {[%clk 0:00:14]}  Re1 {[%clk 0:00:05]} 54. Rg5+ {[%clk 0:00:13]}  Kf6 {[%clk 0:00:06]} 55. Rxh5 {[%clk 0:00:09]}  Rh1+ {[%clk 0:00:06]} 56. Kg4 {[%clk 0:00:10]}  Rxh5 {[%clk 0:00:06]} 57. Kxh5 {[%clk 0:00:11]}  b5 {[%clk 0:00:06]} 58. g4 {[%clk 0:00:10]}  b4 {[%clk 0:00:06]} 59. g5+ {[%clk 0:00:08]}  Kf7 {[%clk 0:00:07]} 60. g6+ {[%clk 0:00:07]}  Kg8 {[%clk 0:00:06]} 61. Be5 {[%clk 0:00:05]}  Be3 {[%clk 0:00:06]} 62. Kg4 {[%clk 0:00:03]}  Bd2 {[%clk 0:00:07]} 63. Kf3 {[%clk 0:00:04]}  Bc3 {[%clk 0:00:07]} 64. Bxc3 {[%clk 0:00:04]}  bxc3 {[%clk 0:00:08]} 65. Ke2 {[%clk 0:00:05]}  Kg7 {[%clk 0:00:09]} 66. Kd1 {[%clk 0:00:06]}  Kxg6 {[%clk 0:00:10]} 67. Kc2 {[%clk 0:00:06]}  Kf5 {[%clk 0:00:10]} 68. Kxc3 {[%clk 0:00:07]} 1/2-1/2


[Site "https://www.chess.com"]

[Event "Titled Tuesday Blitz May 2 Early 2023"]
[White "Soham Kamotra"]
[Black "Beerdsen, Thomas"]
[WhiteFideId "46647490"]
[BlackFideId "1030108"]
[WhiteElo "2209"]
[BlackElo "2547"]
[Result "1/2-1/2"]
[Round "08"]
[TimeControl "180+2"]
[Date "2023.05.02"]
[WhiteClock "0:00:04"]
[BlackClock "0:02:01"]

1. d4 {[%clk 0:03:00]}  Nf6 {[%clk 0:02:58]} 2. Nf3 {[%clk 0:02:59]}  a6 {[%clk 0:02:58]} 3. c4 {[%clk 0:02:51]}  b5 {[%clk 0:02:56]} 4. d5 {[%clk 0:02:36]}  bxc4 {[%clk 0:02:55]} 5. Nc3 {[%clk 0:02:36]}  e6 {[%clk 0:02:51]} 6. e4 {[%clk 0:02:28]}  Bb4 {[%clk 0:02:50]} 7. Bxc4 {[%clk 0:02:05]}  O-O {[%clk 0:02:36]} 8. O-O {[%clk 0:01:40]}  Bxc3 {[%clk 0:02:36]} 9. bxc3 {[%clk 0:01:41]}  Nxe4 {[%clk 0:02:37]} 10. Qd4 {[%clk 0:01:38]}  f5 {[%clk 0:02:34]} 11. dxe6 {[%clk 0:01:30]}  dxe6 {[%clk 0:02:35]} 12. Ba3 {[%clk 0:00:55]}  Nc6 {[%clk 0:02:30]} 13. Qe3 {[%clk 0:00:48]}  Re8 {[%clk 0:02:28]} 14. Qf4 {[%clk 0:00:37]}  Na5 {[%clk 0:02:14]} 15. Rad1 {[%clk 0:00:31]}  Qf6 {[%clk 0:02:14]} 16. Qxc7 {[%clk 0:00:31]}  Nxc4 {[%clk 0:02:14]} 17. Qxc4 {[%clk 0:00:32]}  Qxc3 {[%clk 0:02:14]} 18. Qa4 {[%clk 0:00:23]}  Bb7 {[%clk 0:02:15]} 19. Rc1 {[%clk 0:00:19]}  Qf6 {[%clk 0:02:15]} 20. Rc7 {[%clk 0:00:18]}  Bd5 {[%clk 0:02:16]} 21. Rb1 {[%clk 0:00:17]}  Nc3 {[%clk 0:02:16]} 22. Qc2 {[%clk 0:00:04]}  Nxb1 {[%clk 0:02:15]} 23. Bb2 {[%clk 0:00:04]}  Be4 {[%clk 0:02:11]} 24. Qb3 {[%clk 0:00:02]}  Bd5 {[%clk 0:02:03]} 25. Bxf6 {[%clk 0:00:03]}  Bxb3 {[%clk 0:02:04]} 26. Rxg7+ {[%clk 0:00:03]}  Kf8 {[%clk 0:02:04]} 27. Ne5 {[%clk 0:00:03]}  Red8 {[%clk 0:01:58]} 28. Rf7+ {[%clk 0:00:02]}  Ke8 {[%clk 0:01:59]} 29. Re7+ {[%clk 0:00:03]}  Kf8 {[%clk 0:02:00]} 30. Rf7+ {[%clk 0:00:03]}  Ke8 {[%clk 0:02:00]} 31. Re7+ {[%clk 0:00:04]}  Kf8 {[%clk 0:02:01]} 32. Rf7+ {[%clk 0:00:04]} 1/2-1/2


[Site "https://www.chess.com"]

[Event "Titled Tuesday Blitz May 2 Early 2023"]
[White "Novik, Maxim"]
[Black "Pakleza, Zbigniew"]
[WhiteFideId "4102924"]
[BlackFideId "1119290"]
[WhiteElo "2287"]
[BlackElo "2410"]
[Result "1-0"]
[Round "08"]
[TimeControl "180+2"]
[Date "2023.05.02"]
[WhiteClock "0:00:10"]
[BlackClock "0:00:02"]

1. d4 {[%clk 0:03:00]}  d6 {[%clk 0:02:59]} 2. e4 {[%clk 0:03:00]}  Nf6 {[%clk 0:02:59]} 3. Nc3 {[%clk 0:03:00]}  c6 {[%clk 0:02:59]} 4. f4 {[%clk 0:02:59]}  Qb6 {[%clk 0:03:00]} 5. e5 {[%clk 0:02:39]}  Nd5 {[%clk 0:02:59]} 6. Nxd5 {[%clk 0:02:39]}  cxd5 {[%clk 0:03:00]} 7. c3 {[%clk 0:02:32]}  Bf5 {[%clk 0:02:59]} 8. Nf3 {[%clk 0:02:30]}  e6 {[%clk 0:02:59]} 9. Bd3 {[%clk 0:02:21]}  g6 {[%clk 0:02:59]} 10. O-O {[%clk 0:02:18]}  Nc6 {[%clk 0:02:59]} 11. Bxf5 {[%clk 0:02:16]}  gxf5 {[%clk 0:02:59]} 12. Qe2 {[%clk 0:02:15]}  Be7 {[%clk 0:02:59]} 13. Be3 {[%clk 0:02:14]}  O-O-O {[%clk 0:02:58]} 14. b4 {[%clk 0:02:00]}  Kb8 {[%clk 0:02:57]} 15. a4 {[%clk 0:02:00]}  Rc8 {[%clk 0:02:57]} 16. Rfb1 {[%clk 0:01:52]}  Qd8 {[%clk 0:02:34]} 17. a5 {[%clk 0:01:43]}  Ka8 {[%clk 0:02:19]} 18. Qf2 {[%clk 0:01:27]}  a6 {[%clk 0:01:59]} 19. b5 {[%clk 0:01:24]}  Nb8 {[%clk 0:02:00]} 20. exd6 {[%clk 0:01:19]}  Bxd6 {[%clk 0:01:59]} 21. Ne5 {[%clk 0:01:15]}  Qe7 {[%clk 0:01:36]} 22. bxa6 {[%clk 0:01:11]}  Nxa6 {[%clk 0:01:34]} 23. Rb6 {[%clk 0:01:10]}  Rxc3 {[%clk 0:01:25]} 24. Rab1 {[%clk 0:01:07]}  Rb8 {[%clk 0:01:16]} 25. Qb2 {[%clk 0:01:03]}  Rxe3 {[%clk 0:01:05]} 26. Qb5 {[%clk 0:00:58]}  Rc3 {[%clk 0:00:30]} 27. Nd7 {[%clk 0:00:49]}  Nc7 {[%clk 0:00:16]} 28. Qb2 {[%clk 0:00:23]}  Qxd7 {[%clk 0:00:12]} 29. Qxc3 {[%clk 0:00:17]}  Na6 {[%clk 0:00:07]} 30. Qd3 {[%clk 0:00:17]}  Bxf4 {[%clk 0:00:03]} 31. g3 {[%clk 0:00:15]}  Bd6 {[%clk 0:00:03]} 32. Rxa6+ {[%clk 0:00:15]}  bxa6 {[%clk 0:00:03]} 33. Qxa6+ {[%clk 0:00:15]}  Qa7 {[%clk 0:00:04]} 34. Qc6+ {[%clk 0:00:15]}  Rb7 {[%clk 0:00:05]} 35. a6 {[%clk 0:00:15]}  Qxd4+ {[%clk 0:00:04]} 36. Kg2 {[%clk 0:00:15]}  Qe4+ {[%clk 0:00:03]} 37. Kh3 {[%clk 0:00:14]}  Qg4+ {[%clk 0:00:04]} 38. Kg2 {[%clk 0:00:14]}  Qe4+ {[%clk 0:00:05]} 39. Kh3 {[%clk 0:00:13]}  Qxb1 {[%clk 0:00:05]} 40. axb7+ {[%clk 0:00:11]}  Qxb7 {[%clk 0:00:06]} 41. Qxd6 {[%clk 0:00:11]}  Ka7 {[%clk 0:00:02]} 42. Kh4 {[%clk 0:00:10]} 1-0


[Site "https://www.chess.com"]

[Event "Titled Tuesday Blitz May 2 Early 2023"]
[White "Zhao, Jun"]
[Black "Omelja, Artem"]
[WhiteFideId "8602522"]
[BlackFideId "14119846"]
[WhiteElo "2547"]
[BlackElo "2404"]
[Result "1-0"]
[Round "08"]
[TimeControl "180+2"]
[Date "2023.05.02"]
[WhiteClock "0:01:05"]
[BlackClock "0:00:04"]

1. d4 {[%clk 0:02:57]}  Nf6 {[%clk 0:02:58]} 2. Bf4 {[%clk 0:02:53]}  e6 {[%clk 0:02:58]} 3. e3 {[%clk 0:02:53]}  d5 {[%clk 0:02:58]} 4. Nf3 {[%clk 0:02:52]}  c5 {[%clk 0:02:59]} 5. Nbd2 {[%clk 0:02:50]}  Bd6 {[%clk 0:02:59]} 6. Bb5+ {[%clk 0:02:47]}  Nc6 {[%clk 0:02:58]} 7. Bg3 {[%clk 0:02:43]}  O-O {[%clk 0:02:57]} 8. c3 {[%clk 0:02:42]}  a6 {[%clk 0:02:54]} 9. Bxc6 {[%clk 0:02:42]}  bxc6 {[%clk 0:02:55]} 10. Qa4 {[%clk 0:02:42]}  Bb7 {[%clk 0:02:52]} 11. Bxd6 {[%clk 0:02:42]}  Qxd6 {[%clk 0:02:52]} 12. Qa3 {[%clk 0:02:43]}  Nd7 {[%clk 0:02:51]} 13. Nb3 {[%clk 0:02:43]}  a5 {[%clk 0:02:35]} 14. Nxc5 {[%clk 0:02:43]}  Nxc5 {[%clk 0:02:33]} 15. Qxc5 {[%clk 0:02:43]}  Qxc5 {[%clk 0:02:33]} 16. dxc5 {[%clk 0:02:43]}  f6 {[%clk 0:02:30]} 17. Nd4 {[%clk 0:02:28]}  Kf7 {[%clk 0:02:15]} 18. a4 {[%clk 0:02:21]}  g6 {[%clk 0:02:04]} 19. b4 {[%clk 0:02:13]}  e5 {[%clk 0:01:51]} 20. Nb3 {[%clk 0:02:13]}  axb4 {[%clk 0:01:51]} 21. cxb4 {[%clk 0:02:13]}  Ba6 {[%clk 0:01:52]} 22. Na5 {[%clk 0:02:04]}  Rfc8 {[%clk 0:01:51]} 23. Kd2 {[%clk 0:02:01]}  Ke6 {[%clk 0:01:45]} 24. Kc3 {[%clk 0:01:56]}  Rab8 {[%clk 0:01:39]} 25. Rhd1 {[%clk 0:01:53]}  f5 {[%clk 0:01:36]} 26. f4 {[%clk 0:01:50]}  h6 {[%clk 0:01:34]} 27. fxe5 {[%clk 0:01:49]}  Kxe5 {[%clk 0:01:35]} 28. Nb3 {[%clk 0:01:47]}  Bc4 {[%clk 0:01:33]} 29. Nd4 {[%clk 0:01:47]}  Rc7 {[%clk 0:01:10]} 30. Rd2 {[%clk 0:01:44]}  Ra8 {[%clk 0:00:54]} 31. g3 {[%clk 0:01:37]}  Ke4 {[%clk 0:00:53]} 32. Rf2 {[%clk 0:01:30]}  Ra6 {[%clk 0:00:37]} 33. Rf4+ {[%clk 0:01:26]}  Ke5 {[%clk 0:00:37]} 34. a5 {[%clk 0:01:26]}  Ra8 {[%clk 0:00:35]} 35. g4 {[%clk 0:01:18]}  fxg4 {[%clk 0:00:35]} 36. Rxg4 {[%clk 0:01:19]}  g5 {[%clk 0:00:22]} 37. h4 {[%clk 0:01:19]}  Rg8 {[%clk 0:00:16]} 38. Rag1 {[%clk 0:01:15]}  Kf6 {[%clk 0:00:07]} 39. hxg5+ {[%clk 0:01:15]}  hxg5 {[%clk 0:00:07]} 40. Rxg5 {[%clk 0:01:15]}  Rxg5 {[%clk 0:00:06]} 41. Rxg5 {[%clk 0:01:15]}  Rh7 {[%clk 0:00:04]} 42. Rf5+ {[%clk 0:01:10]}  Kg6 {[%clk 0:00:04]} 43. Rf3 {[%clk 0:01:09]}  Rh1 {[%clk 0:00:04]} 44. Nxc6 {[%clk 0:01:08]}  Ra1 {[%clk 0:00:04]} 45. Ne5+ {[%clk 0:01:05]} 1-0


[Site "https://www.chess.com"]